fUSD/lending_fUSD_20250724
["ID","MTS","AMOUNT","RATE_DAILY","PERIOD"]
[374506418,1753329059180,-500.0,0.00026447,2]
[374506419,1753329059190,-500.0,0.00026447,2]
[374506420,1753329059199,-500.0,0.00026447,2]
[374506421,1753329059209,-500.0,0.00026447,2]
[374506422,1753329059220,-500.0,0.00026447,2]
[374506423,1753329059231,-500.0,0.00026447,2]
[374506424,1753329059241,-500.0,0.00026447,2]
[374506425,1753329059251,-500.0,0.00026447,2]
[374506426,1753329059262,-500.0,0.00026447,2]
[374506427,1753329059273,-500.0,0.00026447,2]
[374506428,1753329059285,-500.0,0.00026447,2]
[374506429,1753329059296,-500.0,0.00026447,2]
[374506430,1753329059306,-500.0,0.00026447,2]
[374506431,1753329059317,-500.0,0.00026447,2]
[374506432,1753329059329,-500.0,0.00026447,2]
[374506433,1753329059341,-500.0,0.00026447,2]
[374506434,1753329059351,-500.0,0.00026447,2]
[374506435,1753329059364,-500.0,0.00026447,2]
[374506436,1753329059375,-500.0,0.00026447,2]
[374506437,1753329059386,-500.0,0.00026447,2]
[374506438,1753329059398,-500.0,0.00026447,2]
[374506439,1753329059410,-500.0,0.00026447,2]
[374506440,1753329059422,-500.0,0.00026447,2]
[374506441,1753329059434,-500.0,0.00026447,2]
[374506442,1753329059444,-500.0,0.00026447,2]
[374506443,1753329059454,-500.0,0.00026447,2]
[374506444,1753329059465,-500.0,0.00026447,2]
[374506445,1753329059475,-500.0,0.00026447,2]
[374506446,1753329059487,-500.0,0.00026447,2]
[374506447,1753329059499,-500.0,0.00026447,2]
[374506448,1753329059510,-500.0,0.00026447,2]
[374506449,1753329059522,-500.0,0.00026447,2]
[374506450,1753329059532,-500.0,0.00026447,2]
[374506451,1753329059543,-500.0,0.00026447,2]
[374506452,1753329059552,-500.0,0.00026447,2]
[374506453,1753329059562,-500.0,0.00026447,2]
[374506454,1753329059574,-500.0,0.00026447,2]
[374506455,1753329059586,-500.0,0.00026447,2]
[374506456,1753329059598,-500.0,0.00026447,2]
[374506457,1753329059610,-500.0,0.00026447,2]
[374506458,1753329059621,-500.0,0.00026447,2]
[374506459,1753329059633,-500.0,0.00026447,2]
[374506460,1753329059645,-500.0,0.00026447,2]
[374506461,1753329059657,-500.0,0.00026447,2]
[374506462,1753329059668,-500.0,0.00026447,2]
[374506463,1753329059678,-500.0,0.00026447,2]
[374506464,1753329059688,-500.0,0.00026447,2]
[374506465,1753329059698,-500.0,0.00026447,2]
[374506466,1753329059708,-500.0,0.00026447,2]
[374506467,1753329059717,-500.0,0.00026447,2]
[374506468,1753329059727,-500.0,0.00026447,2]
[374506469,1753329059738,-500.0,0.00026447,2]
[374506470,1753329059748,-500.0,0.00026447,2]
[374506471,1753329059758,-500.0,0.00026447,2]
[374506472,1753329059768,-500.0,0.00026447,2]
[374506473,1753329059778,-500.0,0.00026447,2]
[374506474,1753329059790,-500.0,0.00026447,2]
[374506475,1753329059802,-500.0,0.00026447,2]
[374506476,1753329059812,-500.0,0.00026447,2]
[374506477,1753329059822,-500.0,0.00026447,2]
[374506478,1753329059832,-500.0,0.00026447,2]
[374506479,1753329059844,-500.0,0.00026447,2]
[374506480,1753329059854,-500.0,0.00026447,2]
[374506481,1753329059864,-500.0,0.00026447,2]
[374506482,1753329059874,-500.0,0.00026447,2]
[374506483,1753329059884,-500.0,0.00026447,2]
[374506484,1753329059895,-500.0,0.00026447,2]
[374506485,1753329059906,-500.0,0.00026447,2]
[374506486,1753329059918,-510.0,0.00026447,2]
[374506487,1753329059930,-500.0,0.00026447,2]
[374506488,1753329059942,-500.0,0.00026447,2]
[374506489,1753329059953,-500.0,0.00026447,2]
[374506490,1753329059963,-500.0,0.00026447,2]
[374506491,1753329059974,-500.0,0.00026447,2]
[374506492,1753329060156,-500.0,0.00026447,2]
[374506493,1753329060175,-500.0,0.00026447,2]
[374506494,1753329060185,-500.0,0.00026447,2]
[374506495,1753329060196,-500.0,0.00026447,2]
[374506496,1753329060206,-500.0,0.00026447,2]
[374506497,1753329060216,-500.0,0.00026447,2]
[374506498,1753329060226,-500.0,0.00026447,2]
[374506499,1753329060236,-500.0,0.00026447,2]
[374506500,1753329060246,-500.0,0.00026447,2]
[374506501,1753329060256,-500.0,0.00026447,2]
[374506502,1753329060265,-500.0,0.00026447,2]
[374506503,1753329060275,-500.0,0.00026447,2]
[374506504,1753329060290,-500.0,0.00026447,2]
[374506505,1753329060299,-500.0,0.00026447,2]
[374506506,1753329060309,-500.0,0.00026447,2]
[374506507,1753329060319,-500.0,0.00026447,2]
[374506508,1753329060329,-520.0,0.00026447,2]
[374506509,1753329060339,-500.0,0.00026447,2]
[374506510,1753329060349,-500.0,0.00026447,2]
[374506511,1753329060358,-500.0,0.00026447,2]
[374506512,1753329060370,-500.0,0.00026447,2]
[374506513,1753329060380,-500.0,0.00026447,2]
[374506514,1753329060389,-500.0,0.00026447,2]
[374506515,1753329060399,-500.0,0.00026447,2]
[374506516,1753329060408,-500.0,0.00026447,2]
[374506517,1753329060418,-500.0,0.00026447,2]
[374506518,1753329060428,-500.0,0.00026447,2]
[374506519,1753329060437,-500.0,0.00026447,2]
[374506520,1753329060447,-500.0,0.00026447,2]
[374506521,1753329060457,-500.0,0.00026447,2]
[374506522,1753329060467,-500.0,0.00026447,2]
[374506523,1753329060476,-500.0,0.00026447,2]
[374506524,1753329060486,-500.0,0.00026447,2]
[374506525,1753329060496,-500.0,0.00026447,2]
[374506526,1753329060505,-500.0,0.00026447,2]
[374506527,1753329060515,-500.0,0.00026447,2]
[374506528,1753329060524,-500.0,0.00026447,2]
[374506529,1753329060534,-500.0,0.00026447,2]
[374506530,1753329060548,-500.0,0.00026447,2]
[374506531,1753329060558,-500.0,0.00026447,2]
[374506532,1753329060567,-500.0,0.00026447,2]
[374506533,1753329060577,-500.0,0.00026447,2]
[374506534,1753329060587,-500.0,0.00026447,2]
[374506535,1753329060596,-500.0,0.00026447,2]
[374506536,1753329060606,-500.0,0.00026447,2]
[374506537,1753329060616,-500.0,0.00026447,2]
[374506538,1753329060625,-500.0,0.00026447,2]
[374506539,1753329060636,-150.0,0.00026455,4]
[374506540,1753329060645,-276.19465298,0.00026468,4]
[374506541,1753329060656,-150.0,0.0002647,4]
[374506542,1753329060665,-150.0,0.00026472,4]
[374506543,1753329060675,-500.0,0.00026482,7]
[374506544,1753329060685,-2434.0931116,0.00026482,2]
[374506545,1753329060695,-150.0,0.0002649,2]
[374506546,1753329060704,-276.19465298,0.00026496,4]
[374506547,1753329060714,-150.0,0.00026498,4]
[374506548,1753329060724,-150.0,0.000265,4]
[374506549,1753329060734,-1089108.82521675,0.000265,2]
[374506550,1753329060744,-30000.0,0.000265,7]
[374506551,1753329060753,-151.0,0.000265,7]
[374506552,1753329060763,-151.0,0.000265,7]
[374506553,1753329060772,-234.164556,0.000265,7]
[374506554,1753329060782,-180.808131,0.000265,7]
[374506555,1753329060794,-180.808131,0.000265,7]
[374506556,1753329060803,-317.742185,0.000265,7]
[374506557,1753329060813,-317.742185,0.000265,7]
[374506558,1753329060823,-151.0,0.000265,2]
[374506559,1753329060833,-150.0,0.00026504,4]
[374506560,1753329060843,-150.0,0.00026514,4]
[374506561,1753329060853,-150.0,0.00026514,4]
[374506562,1753329060862,-1521.98931461,0.00026516,2]
[374506563,1753329060872,-150.0,0.00026517,4]
[374506564,1753329060882,-503.0,0.00026518,5]
[374506565,1753329060891,-250.0,0.00026521,2]
[374506566,1753329060902,-276.19465298,0.00026523,4]
[374506567,1753329060912,-150.0,0.00026527,4]
[374506568,1753329060922,-150.0,0.00026535,2]
[374506569,1753329060937,-150.0,0.00026537,4]
[374506570,1753329060949,-150.0,0.00026544,4]
[374506571,1753329060960,-276.19465298,0.0002655,4]
[374506572,1753329060970,-150.0,0.00026555,4]
[374506573,1753329060981,-150.0,0.00026556,4]
[374506574,1753329060993,-3510.19536389,0.00026561,2]
[374506575,1753329061003,-1919.0,0.00026562,2]
[374506576,1753329061013,-920.0,0.00026562,2]
[374506577,1753329061023,-150.0,0.00026569,4]
[374506578,1753329061034,-276.19465298,0.00026577,4]
[374506579,1753329061046,-150.0,0.00026582,4]
[374506580,1753329061056,-150.0,0.00026582,4]
[374506581,1753329061066,-150.0,0.00026584,4]
[374506582,1753329061076,-150.0,0.00026588,2]
[374506583,1753329061086,-150.0,0.00026588,4]
[374506584,1753329061100,-150.0,0.00026596,2]
[374506585,1753329061111,-150.0,0.00026597,2]
[374506586,1753329061120,-150.0,0.00026601,4]
[374506587,1753329061131,-150.0,0.00026601,4]
[374506588,1753329061142,-276.19465298,0.00026605,4]
[374506589,1753329061152,-206.01938104,0.00026606,15]
[374506590,1753329061162,-150.0,0.00026613,4]
[374506591,1753329061173,-276.19465298,0.00026632,4]
[374506592,1753329061183,-150.0,0.00026632,4]
[374506593,1753329061192,-150.0,0.00026633,4]
[374506594,1753329061202,-150.0,0.00026634,4]
[374506595,1753329061212,-150.0,0.00026642,4]
[374506596,1753329061223,-150.0,0.00026649,4]
[374506597,1753329061233,-150.0,0.00026649,4]
[374506598,1753329061243,-150.0,0.00026649,4]
[374506599,1753329061254,-276.19465298,0.00026659,4]
[374506600,1753329061264,-150.0,0.00026662,4]
[374506601,1753329061274,-150.0,0.00026665,4]
[374506602,1753329061287,-150.0,0.00026667,2]
[374506603,1753329061297,-150.0,0.00026669,2]
[374506604,1753329061307,-150.0,0.00026671,4]
[374506605,1753329061317,-150.0,0.00026677,4]
[374506606,1753329061327,-276.19465298,0.00026686,4]
[374506607,1753329061338,-150.0,0.00026697,4]
[374506608,1753329061348,-150.0,0.00026699,2]
[374506609,1753329061359,-150.0,0.00026699,4]
[374506610,1753329061369,-203.0,0.000267,2]
[374506611,1753329061380,-203.0,0.000267,2]
[374506612,1753329061391,-203.0,0.000267,2]
[374506613,1753329061401,-203.0,0.000267,2]
[374506614,1753329061411,-203.0,0.000267,2]
[374506615,1753329061420,-203.0,0.000267,2]
[374506616,1753329061430,-203.0,0.000267,2]
[374506617,1753329061443,-203.0,0.000267,2]
[374506618,1753329061452,-203.0,0.000267,2]
[374506619,1753329061464,-203.0,0.000267,2]
[374506620,1753329061473,-203.0,0.000267,2]
[374506621,1753329061493,-203.0,0.000267,2]
[374506622,1753329061505,-203.0,0.000267,2]
[374506623,1753329061515,-212.0,0.000267,2]
[374506624,1753329061525,-212.0,0.000267,2]
[374506625,1753329061536,-212.0,0.000267,2]
[374506626,1753329061547,-216.0,0.000267,2]
[374506627,1753329061557,-13587.42,0.000267,2]
[374506628,1753329061568,-150.0,0.00026709,2]
[374506629,1753329061578,-2553.1,0.0002671,4]
[374506630,1753329061589,-276.19465298,0.00026714,4]
[374506631,1753329061599,-150.0,0.00026716,4]
[374506632,1753329061610,-150.0,0.00026716,4]
[374506633,1753329061620,-150.0,0.00026721,4]
[374506634,1753329061631,-150.0,0.00026728,4]
[374506635,1753329061641,-196.63,0.00026729,2]
[374506636,1753329061651,-150.0,0.00026729,4]
[374506637,1753329061662,-633.0,0.0002673,2]
[374506638,1753329061675,-150.0,0.00026733,2]
[374506639,1753329061685,-150.0,0.00026734,2]
[374506640,1753329061696,-150.0,0.00026736,2]
[374506641,1753329061707,-276.19465298,0.00026741,4]
[374506642,1753329061718,-150.0,0.00026752,4]
[374506643,1753329061728,-500.0,0.00026756,7]
[374506644,1753329061739,-150.0,0.00026757,4]
[374506645,1753329061750,-150.0,0.00026761,4]
[374506646,1753329061760,-150.0,0.00026765,4]
[374506647,1753329061770,-276.19465298,0.00026768,4]
[374506648,1753329061781,-150.0,0.0002677,4]
[374506649,1753329061792,-150.0,0.00026783,2]
[374506650,1753329061802,-150.0,0.00026784,4]
[374506651,1753329061813,-150.0,0.00026784,4]
[374506652,1753329061824,-150.0,0.00026785,4]
[374506653,1753329061834,-150.0,0.00026791,2]
[374506654,1753329061845,-150.0,0.00026794,4]
[374506655,1753329061855,-276.19465298,0.00026795,4]
[374506656,1753329061866,-3560.66,0.000268,14]
[374506657,1753329061877,-1479.11,0.000268,7]
[374506658,1753329061886,-200.0,0.00026805,2]
[374506659,1753329061896,-150.0,0.00026809,4]
[374506660,1753329061906,-150.0,0.00026814,4]
[374506661,1753329061917,-150.0,0.00026817,2]
[374506662,1753329061931,-276.19465298,0.00026823,4]
[374506663,1753329061942,-150.0,0.00026826,4]
[374506664,1753329061953,-1919.0,0.00026836,2]
[374506665,1753329061964,-920.0,0.00026836,2]
[374506666,1753329061976,-150.0,0.00026843,4]
[374506667,1753329061986,-150.0,0.00026845,2]
[374506668,1753329061997,-276.19465298,0.0002685,4]
[374506669,1753329062007,-150.0,0.00026851,4]
[374506670,1753329062018,-150.0,0.00026851,4]
[374506671,1753329062031,-150.0,0.00026854,4]
[374506672,1753329062042,-150.0,0.00026858,4]
[374506673,1753329062052,-150.0,0.00026869,4]
[374506674,1753329062062,-150.0,0.00026871,4]
[374506675,1753329062073,-276.19465298,0.00026877,4]
[374506676,1753329062083,-150.0,0.00026878,4]
[374506677,1753329062094,-150.0,0.0002689,4]
[374506678,1753329062104,-200.0,0.00026894,2]
[374506679,1753329062114,-150.0,0.00026898,4]
[374506680,1753329062124,-246.16185311,0.000269,2]
[374506681,1753329062134,-2935.8106497,0.000269,2]
[374506682,1753329062144,-4359.10067556,0.000269,2]
[374506683,1753329062154,-3510.19536389,0.000269,2]
[374506684,1753329062164,-1521.98931461,0.000269,2]
[374506685,1753329062174,-206.01938104,0.000269,16]
[374506686,1753329062185,-167.30946477,0.000269,4]
[374506687,1753329062195,-167.30946477,0.000269,4]
[374506688,1753329062205,-167.3,0.000269,4]
[374506689,1753329062216,-177.39812881,0.000269,4]
[374506690,1753329062226,-177.39812881,0.000269,4]
[374506691,1753329062236,-177.39812881,0.000269,4]
[374506692,1753329062247,-177.39,0.000269,4]
[374506693,1753329062257,-204.83741839,0.000269,2]
[374506694,1753329062267,-150.034722,0.000269,4]
[374506695,1753329062277,-150.034722,0.000269,4]
[374506696,1753329062292,-150.034722,0.000269,4]
[374506697,1753329062303,-150.03,0.000269,4]
[374506698,1753329062313,-1089.97761305,0.000269,2]
[374506699,1753329062324,-209.87659429,0.000269,2]
[374506700,1753329062335,-150.0,0.000269,4]
[374506701,1753329062346,-276.19465298,0.00026905,4]
[374506702,1753329062356,-179.17813619,0.00026907,2]
[374506703,1753329062368,-150.0,0.00026919,4]
[374506704,1753329062378,-150.0,0.00026919,4]
[374506705,1753329062392,-150.0,0.00026922,2]
[374506706,1753329062402,-150.0,0.00026922,4]
[374506707,1753329062413,-150.0,0.00026929,4]
[374506708,1753329062423,-150.0,0.00026929,2]
[374506709,1753329062434,-276.19465298,0.00026932,4]
[374506710,1753329062886,-150.0,0.00026942,4]
[374506711,1753329062897,-150.0,0.00026954,4]
[374506712,1753329062907,-150.0,0.00026958,4]
[374506713,1753329062917,-276.19465298,0.00026959,4]
[374506714,1753329062927,-150.0,0.00026977,2]
[374506715,1753329062937,-2122.2556881,0.00026982,2]
[374506716,1753329062946,-1810.4182645,0.00026982,2]
[374506717,1753329062956,-150.0,0.00026983,2]
[374506718,1753329062966,-150.48871843,0.00026986,4]
[374506719,1753329062976,-276.19465298,0.00026986,4]
[374506720,1753329062986,-194.55145512,0.00026986,4]
[374506721,1753329062996,-290.2601086,0.00026986,4]
[374506722,1753329063007,-160.37418769,0.00026986,4]
[374506723,1753329063017,-265.63016388,0.00026986,4]
[374506724,1753329063027,-156.48397674,0.00026986,4]
[374506725,1753329063039,-259.19315734,0.00026986,4]
[374506726,1753329063049,-159.03823153,0.00026986,4]
[374506727,1753329063060,-161.38912353,0.00026986,4]
[374506728,1753329063070,-157.20286982,0.00026986,4]
[374506729,1753329063081,-153.27865121,0.00026986,4]
[374506730,1753329063092,-166.3894664,0.00026986,4]
[374506731,1753329063102,-151.04203856,0.00026986,4]
[374506732,1753329063112,-157.76293725,0.00026986,4]
[374506733,1753329063122,-150.0,0.00026994,2]
[374506734,1753329063134,-108608.67171644,0.00027,3]
[374506735,1753329063144,-3028.49138561,0.00027,2]
[374506736,1753329063155,-36634.08612375,0.00027,7]
[374506737,1753329063643,-216.596582,0.00023999,7]
[374506738,1753329063653,-701.89392987,0.00027,7]
[374506739,1753329064399,-150.0,0.00023912,2]
[374506740,1753329064408,-216.596582,0.00024,7]
[374506741,1753329064419,-775.06242452,0.00024163,2]
[374506742,1753329064429,-216.596582,0.00024417,7]
[374506743,1753329064439,-150.0,0.0002511,2]
[374506744,1753329064449,-150.0,0.00025632,2]
[374506745,1753329064459,-54.85234075,0.00025949,2]
[374506746,1753329064479,-95.14765925,0.00025949,2]
[374506747,1753329064490,-150.0,0.00026111,2]
[374506748,1753329064501,-150.0,0.000264,2]
[374506749,1753329064511,-102664.01994538,0.00027,7]
[374506750,1753329064521,-472093.95702352,0.00027,5]
[374506751,1753329064862,-150.0,0.00023737,2]
[374506752,1753329064876,-216.596582,0.000248,7]
[374506753,1753329064890,-150.0,0.00026033,2]
[374506754,1753329064903,-2056.29173269,0.00027,5]
[374506755,1753329064921,-1112.35704403,0.00027,5]
[374506756,1753329065031,-3191.2970725,0.00027,5]
[374506757,1753329068999,2000.0,0.00027397,120]
[374506758,1753329085171,2000.0,0.00016656,2]
[374506759,1753329195666,500.0,0.00027397,120]
[374506765,1753329637470,200.0,0.00027297,120]
[374506766,1753329666395,158.14,0.00013699,2]
[374506769,1753329773023,-651.13,0.00019178,2]
[374506770,1753329773047,-651.13,0.00020825,2]
[374506771,1753329773067,-697.74,0.0002131,2]
[374506773,1753329797203,-100.75526367,0.0002131,2]
[374506774,1753329797227,-158.14,0.00021404,2]
[374506775,1753329797252,-278.168921,0.0002141,2]
[374506776,1753329797275,-798.49526365,0.00021473,2]
[374506777,1753329797300,-377.3949,0.00021518,2]
[374506778,1753329797322,-798.49526365,0.00021637,2]
[374506779,1753329797345,-288.55038803,0.000218,2]
[374506780,1753329829409,-163.3103345,0.000219,2]
[374506781,1753329829435,-607.0,0.00022,2]
[374506782,1753329829458,-1054.0,0.00022274,2]
[374506783,1753329829479,-365.0,0.00022303,2]
[374506784,1753329829501,-300.0,0.00022303,2]
[374506785,1753329829527,-960.0,0.00022304,2]
[374506786,1753329829549,-563.0,0.00022304,2]
[374506787,1753329829570,-890.0,0.00022304,2]
[374506788,1753329829593,-1097.6896655,0.00022304,2]
[374506807,1753330232393,-283.36167208,0.000207,2]
[374506808,1753330232423,-4.63832792,0.000207,2]
[374506809,1753330232433,-5511.0,0.000211,3]
[374506811,1753330232442,-2101.73346937,0.000215,5]
[374506812,1753330232454,-308.77577485,0.000215,5]
[374506813,1753330232466,-617.9141118,0.000215,5]
[374506814,1753330232478,-2105.38685513,0.000215,5]
[374506815,1753330232491,-377.18978885,0.000215,5]
[374506816,1753330232501,-757.12237167,0.000219,6]
[374506817,1753330232512,-608.0,0.00022,2]
[374506818,1753330232523,-757.12237145,0.00022279,6]
[374506819,1753330232534,-1688.0,0.00022304,2]
[374506820,1753330232544,-596.0,0.00022304,2]
[374506821,1753330232554,-1204.96411203,0.00022304,2]
[374506822,1753330232565,-84.03588797,0.00022304,2]
[374506823,1753330232575,-214.21667997,0.00022472,2]
[374506824,1753330232624,-436.91332003,0.00022472,2]
[374506825,1753330232639,-360.58667747,0.000225,2]
[374506826,1753330232842,-39.41332253,0.000225,2]
[374506827,1753330232853,-757.12237145,0.00022659,7]
[374506828,1753330232864,-11006.94242853,0.00022715,2]
[374506829,1753330232877,-150.0,0.00022762,2]
[374506830,1753330232887,-150.0,0.00022762,2]
[374506831,1753330232897,-1541.77,0.00022883,2]
[374506832,1753330232909,-211.01152796,0.00022926,2]
[374506833,1753330232919,-477.18900901,0.00022926,2]
[374506834,1753330232928,-175.041,0.00022942,2]
[374506835,1753330232938,-925.37034052,0.0002296,2]
[374506836,1753330232951,-311.22965948,0.0002296,2]
[374506837,1753330232963,-24.47225487,0.00022962,2]
[374506838,1753330232974,-634.93992459,0.00022962,2]
[374506839,1753330237555,-320.000002,0.00022962,2]
[374506840,1753330237566,-1092.11042109,0.00022962,2]
[374506841,1753330237613,-545.08918823,0.00022962,2]
[374507015,1753330239856,-2387.63117249,0.00022962,2]
[374507021,1753330239912,-4212.61303673,0.00022962,2]
[374507023,1753330239922,-231.28369723,0.00022962,2]
[374507025,1753330239932,-165.77,0.00022963,2]
[374507027,1753330239942,-2500.0,0.0002299,2]
[374507029,1753330239953,-1000.0,0.00023,2]
[374507031,1753330239962,-1000.0,0.00023,2]
[374507034,1753330239972,-1000.0,0.00023,2]
[374507035,1753330239982,-1607.0,0.00023,2]
[374507038,1753330239992,-757.12237145,0.00023038,8]
[374507039,1753330240003,-1000.0,0.00023098,2]
[374507041,1753330240012,-1000.0,0.00023098,2]
[374507043,1753330240022,-1000.0,0.00023098,2]
[374507045,1753330240033,-150.0,0.00023099,2]
[374507047,1753330240047,-150.0,0.00023099,2]
[374507049,1753330240057,-150.0,0.00023099,2]
[374507051,1753330240066,-150.0,0.00023099,2]
[374507053,1753330240075,-150.0,0.00023099,2]
[374507055,1753330240085,-150.0,0.00023099,2]
[374507057,1753330240094,-150.0,0.00023099,2]
[374507060,1753330240104,-156.522,0.00023099,2]
[374507061,1753330240128,-954.913,0.00023099,2]
[374507063,1753330240138,-3354.0,0.00023099,2]
[374507065,1753330240148,-807.0,0.00023099,2]
[374507067,1753330240157,-2018.0,0.00023099,2]
[374507069,1753330240167,-1269.0,0.00023099,2]
[374507072,1753330240177,-176.85,0.00023132,2]
[374507074,1753330240188,-315.6591072,0.00023151,2]
[374507075,1753330240198,-153.39652604,0.00023151,2]
[374507078,1753330240208,-346.92554585,0.00023151,2]
[374507080,1753330240218,-316.93431972,0.00023151,2]
[374507111,1753330240538,-600.0,0.00023151,2]
[374507114,1753330240558,-162.44743321,0.00023151,2]
[374507116,1753330240568,-576.19797592,0.00023151,2]
[374507118,1753330240577,-500.0,0.00023151,2]
[374507120,1753330240586,-151.0,0.00023151,2]
[374507122,1753330240596,-152.42883595,0.00023151,2]
[374507124,1753330240606,-614.72059819,0.00023151,2]
[374507126,1753330240620,-890.0,0.00023165,2]
[374507128,1753330240629,-368.718,0.00023165,2]
[374507130,1753330240640,-863.0,0.00023165,2]
[374507132,1753330240651,-6055.0,0.00023165,2]
[374507134,1753330240661,-4129.0,0.00023165,2]
[374507136,1753330240670,-595.0,0.0002318,2]
[374507138,1753330240680,-900.0,0.00023205,8]
[374507140,1753330240691,-900.0,0.00023205,8]
[374507142,1753330240701,-900.0,0.00023205,8]
[374507144,1753330240711,-900.0,0.00023205,8]
[374507146,1753330240721,-900.0,0.00023205,8]
[374507148,1753330240730,-900.0,0.00023205,8]
[374507151,1753330240740,-900.0,0.00023205,8]
[374507152,1753330240750,-534.43860853,0.00023211,2]
[374507154,1753330240759,-600.0,0.00023213,2]
[374507156,1753330240769,-168.0,0.00023273,2]
[374507158,1753330240779,-300.0,0.0002332,2]
[374507161,1753330240799,-2500.0,0.0002332,2]
[374507163,1753330240808,-757.12237145,0.00023417,9]
[374507165,1753330240817,-310.41,0.00023456,2]
[374507167,1753330240827,-694.66521986,0.0002351,2]
[374507169,1753330240836,-250.0,0.00023519,2]
[374507171,1753330240846,-968.32901439,0.0002352,2]
[374507173,1753330240855,-180.0,0.00023545,7]
[374507175,1753330240865,-1000.0,0.0002379,2]
[374507177,1753330240875,-5000.0,0.00023796,2]
[374507179,1753330240884,-757.12237145,0.00023797,9]
[374507181,1753330240894,-1000.0,0.00023833,2]
[374507183,1753330240903,-1200.0,0.0002387,2]
[374507185,1753330240912,-500.0,0.00023878,2]
[374507187,1753330240922,-168.0,0.00023965,2]
[374507189,1753330240932,-700.0,0.0002397,2]
[374507191,1753330240942,-168.0,0.0002397,2]
[374507193,1753330240951,-176.85,0.00023999,2]
[374507195,1753330240961,-151.0,0.00023999,7]
[374507197,1753330240970,-151.0,0.00023999,7]
[374507199,1753330240979,-151.0,0.00023999,7]
[374507201,1753330240988,-151.0,0.00023999,7]
[374507203,1753330240999,-151.0,0.00023999,7]
[374507205,1753330241008,-151.0,0.00023999,7]
[374507207,1753330241017,-151.0,0.00023999,7]
[374507209,1753330241027,-151.0,0.00023999,7]
[374507211,1753330241037,-151.0,0.00023999,7]
[374507213,1753330241051,-269.427011,0.00023999,7]
[374507215,1753330241061,-269.427011,0.00023999,7]
[374507217,1753330241071,-151.0,0.00023999,7]
[374507219,1753330241080,-151.0,0.00023999,7]
[374507221,1753330241090,-151.0,0.00023999,7]
[374507223,1753330241100,-2446.72,0.00023999,2]
[374507225,1753330241109,-151.0,0.00024,7]
[374507227,1753330241119,-151.0,0.00024,7]
[374507229,1753330241129,-151.0,0.00024,7]
[374507231,1753330241138,-151.0,0.00024,7]
[374507233,1753330241147,-151.0,0.00024,7]
[374507235,1753330241156,-151.0,0.00024,7]
[374507237,1753330241166,-151.0,0.00024,7]
[374507239,1753330241175,-151.0,0.00024,7]
[374507241,1753330241185,-151.0,0.00024,7]
[374507243,1753330241196,-191.499543,0.00024,7]
[374507245,1753330241205,-151.0,0.00024,7]
[374507247,1753330241215,-151.0,0.00024,7]
[374507249,1753330241224,-269.427011,0.00024,7]
[374507251,1753330241233,-151.0,0.00024,7]
[374507253,1753330241242,-151.6929,0.00024,7]
[374507255,1753330241252,-967.0,0.00024084,2]